bitfinex-derivatives/quotes_BTCF0:USTF0_20250614
["timestamp","ask_amount","ask_price","bid_price","bid_amount"]
[1749864829222,0.00114186,105600.0,105590.0,2.7349105]
[1749864829423,0.00114186,105600.0,105590.0,2.73491034]
[1749864829625,0.00114186,105600.0,105590.0,2.73491042]
[1749864829923,0.00114186,105600.0,105590.0,2.72014477]
[1749864830124,0.00114186,105600.0,105590.0,2.73331971]
[1749864830422,0.00114186,105600.0,105590.0,2.73333293]
[1749864830623,0.00114186,105600.0,105590.0,2.73332066]
[1749864830835,0.00114186,105600.0,105590.0,2.74811239]
[1749864831035,0.00114186,105600.0,105590.0,2.73332611]
[1749864831335,0.00114186,105600.0,105590.0,2.73493103]
[1749864831532,0.00114186,105600.0,105590.0,2.73493101]
[1749864831834,0.00114186,105600.0,105590.0,2.72014477]
[1749864832128,0.00114186,105600.0,105590.0,2.73333276]
[1749864832335,0.00114186,105600.0,105590.0,2.74812264]
[1749864832533,0.00114186,105600.0,105590.0,2.74812267]
[1749864832735,0.00114186,105600.0,105590.0,2.73332161]
[1749864832935,0.00114186,105600.0,105590.0,2.74811192]
[1749864833130,0.00114186,105600.0,105590.0,2.74812399]
[1749864833331,0.00114186,105600.0,105590.0,2.74809757]
[1749864833531,0.00114186,105600.0,105590.0,2.72014477]
[1749864833727,0.00114186,105600.0,105590.0,2.73330582]
[1749864833934,0.00114186,105600.0,105590.0,2.74809001]
[1749864834136,0.00114186,105600.0,105590.0,2.43653655]
[1749864834336,0.00114186,105600.0,105590.0,2.43649253]
[1749864834535,0.00114186,105600.0,105590.0,2.4348853]
[1749864834731,0.00114186,105600.0,105590.0,2.43649253]
[1749864835042,0.00114186,105600.0,105590.0,2.44964337]
[1749864835240,0.00114186,105600.0,105590.0,2.44966764]
[1749864835440,0.00114186,105600.0,105590.0,2.42174477]
[1749864835641,0.00114186,105600.0,105590.0,2.43492081]
[1749864835942,0.00114186,105600.0,105590.0,2.40690534]
[1749864836134,0.00114186,105600.0,105590.0,2.43481876]
[1749864836340,0.00114186,105600.0,105590.0,2.43482245]
[1749864836540,0.00114186,105600.0,105590.0,2.43482699]
[1749864836847,0.00114186,105600.0,105590.0,2.43480565]
[1749864837036,0.00114186,105600.0,105590.0,2.42165315]
[1749864837233,0.00114186,105600.0,105590.0,2.43480477]
[1749864837537,0.00114186,105600.0,105590.0,2.73320493]
[1749864837739,0.00114186,105600.0,105590.0,2.73320492]
[1749864837942,0.00114186,105600.0,105590.0,2.71845711]
[1749864838240,0.00114186,105600.0,105590.0,2.7923823]
[1749864838441,0.00114186,105600.0,105590.0,2.79239177]
[1749864838744,0.00114186,105600.0,105590.0,2.79239884]
[1749864838945,0.00114186,105600.0,105590.0,2.74806096]
[1749864839129,0.00114186,105600.0,105590.0,2.74804807]
[1749864839741,0.00114186,105600.0,105590.0,2.74804809]
[1749864839937,0.19044386,105600.0,105590.0,1.39369761]
[1749864840138,0.25474386,105600.0,105590.0,2.70608048]
[1749864840337,0.25474386,105600.0,105590.0,2.72094269]
[1749864840541,0.06544186,105600.0,105590.0,2.70619795]
[1749864840743,0.06544186,105600.0,105590.0,2.34539795]
[1749864840945,0.06544186,105600.0,105590.0,2.70622821]
[1749864841240,0.06544186,105600.0,105590.0,2.70617495]
[1749864841545,0.06544186,105600.0,105590.0,2.70620359]
[1749864841737,0.25474386,105600.0,105590.0,2.70620494]
[1749864841939,0.06544186,105600.0,105590.0,2.70620494]
[1749864842134,0.06544186,105600.0,105590.0,2.70620801]
[1749864842340,0.06544186,105600.0,105590.0,2.69302125]
[1749864842840,0.06544186,105600.0,105590.0,2.70631945]
[1749864843040,0.06544186,105600.0,105590.0,2.70631951]
[1749864843245,0.06544186,105600.0,105590.0,2.69302125]
[1749864843740,0.06544186,105600.0,105590.0,2.7063115]
[1749864843945,0.06544186,105600.0,105590.0,2.70631836]
[1749864844144,0.06544186,105600.0,105590.0,2.70631605]
[1749864844339,0.00114186,105600.0,105590.0,2.69302125]
[1749864844534,6e-08,105600.0,105590.0,2.738157]
[1749864844740,6e-08,105600.0,105590.0,2.76747278]
[1749864844939,6e-08,105600.0,105590.0,2.75427883]
[1749864845245,6e-08,105600.0,105590.0,2.78382212]
[1749864845546,6e-08,105600.0,105590.0,2.79700835]
[1749864845738,6e-08,105600.0,105590.0,2.78382212]
[1749864845936,6e-08,105600.0,105590.0,2.87852612]
[1749864846245,6e-08,105600.0,105590.0,2.77359962]
[1749864846445,6e-08,105600.0,105590.0,2.76047383]
[1749864846646,6e-08,105600.0,105590.0,2.87868568]
[1749864846949,2e-08,105610.0,105600.0,0.189302]
[1749864847241,2e-08,105610.0,105600.0,0.99382048]
[1749864848351,2e-08,105610.0,105600.0,1.11202985]
[1749864848651,2e-08,105610.0,105600.0,1.00861513]
[1749864848848,2e-08,105610.0,105600.0,1.00861502]
[1749864849152,2e-08,105610.0,105600.0,1.00861504]
[1749864849453,2e-08,105610.0,105600.0,1.00861514]
[1749864849647,2e-08,105610.0,105600.0,1.09718971]
[1749864849850,2e-08,105610.0,105600.0,1.08239505]
[1749864850349,0.637899,105650.0,105640.0,0.1892303]
[1749864850553,1.05045887,105650.0,105640.0,1.18247495]
[1749864851048,0.60178477,105650.0,105640.0,1.57033609]
[1749864851247,0.54178477,105650.0,105640.0,1.58510001]
[1749864851852,0.61188477,105650.0,105640.0,1.58510001]
[1749864852048,0.61188477,105650.0,105640.0,1.20953609]
[1749864852254,0.60537064,105650.0,105640.0,1.58509996]
[1749864852451,0.41615814,105650.0,105640.0,1.58509996]
[1749864853159,0.41615814,105650.0,105640.0,1.58506059]
[1749864853456,0.35015814,105650.0,105640.0,1.67912452]
[1749864853647,0.35015814,105650.0,105640.0,1.69388748]
[1749864853848,0.41555814,105650.0,105640.0,1.67912452]
[1749864854151,0.41555814,105650.0,105640.0,1.69388749]
[1749864854453,0.41555814,105650.0,105640.0,1.69388748]
[1749864854648,0.41555814,105650.0,105640.0,1.67912452]
[1749864854848,0.41155814,105650.0,105640.0,1.69388749]
[1749864855151,0.41255814,105650.0,105640.0,1.67912452]
[1749864855447,0.41255814,105650.0,105640.0,1.69388748]
[1749864855653,0.41255814,105650.0,105640.0,1.63489731]
[1749864856252,0.41255814,105650.0,105640.0,1.64966027]
[1749864856452,0.41255814,105650.0,105640.0,1.64966028]
[1749864857550,0.41255814,105650.0,105640.0,1.63489731]
[1749864860054,0.41255814,105650.0,105640.0,0.65641731]
[1749864860359,0.60177044,105650.0,105640.0,1.20889731]
[1749864860562,0.60177044,105650.0,105640.0,0.23101731]
[1749864860861,0.60177044,105650.0,105640.0,1.20905731]
[1749864861458,0.60177044,105650.0,105640.0,1.20901731]
[1749864863956,0.60177044,105650.0,105640.0,1.50741731]
[1749864864360,0.2919123,105650.0,105640.0,1.50741731]
[1749864864563,0.37995814,105650.0,105640.0,1.50741731]
[1749864864954,0.41005814,105650.0,105640.0,1.50685731]
[1749864865260,0.59927104,105650.0,105640.0,0.52941731]
[1749864865452,0.96007104,105650.0,105640.0,0.6767103]
[1749864865652,0.1892308,105640.0,105630.0,1.97332272]
[1749864865859,0.6110308,105640.0,105630.0,2.20473812]
[1749864866051,0.6110308,105640.0,105630.0,1.18516272]
[1749864866256,0.2502308,105640.0,105630.0,2.16300272]
[1749864866459,0.2502308,105640.0,105630.0,2.56550278]
[1749864866659,0.2502308,105640.0,105630.0,2.20470278]
[1749864867862,0.2502308,105640.0,105630.0,2.56550278]
[1749864868055,0.2522308,105640.0,105630.0,2.20470278]
[1749864868256,0.2542308,105640.0,105630.0,2.56550278]
[1749864868559,0.2542308,105640.0,105630.0,2.20470278]
[1749864871458,0.2542308,105640.0,105630.0,2.56550278]
[1749864871661,0.2542308,105640.0,105630.0,2.20470278]
[1749864874564,0.6150308,105640.0,105630.0,2.20470278]
[1749864874762,0.2542308,105640.0,105630.0,2.20470278]
[1749864874966,0.2542308,105640.0,105630.0,1.22686278]
[1749864875158,0.9250308,105640.0,105630.0,1.22557408]
[1749864875363,1.0196948,105640.0,105630.0,1.97119402]
[1749864875673,1.1075689,105640.0,105630.0,1.97119402]
[1749864875878,1.1075689,105640.0,105630.0,1.00610186]
[1749864876168,0.7975689,105640.0,105630.0,1.79338186]
[1749864876770,1.0475689,105640.0,105630.0,1.79330186]
[1749864877177,1.3575689,105640.0,105630.0,0.18810186]
[1749864877364,1.3875689,105640.0,105630.0,0.18810186]
[1749864878274,1.1375689,105640.0,105630.0,0.20122006]
[1749864878474,1.1375689,105640.0,105630.0,0.2012201]
[1749864878772,1.1375689,105640.0,105630.0,0.2012208]
[1749864878966,1.1375689,105640.0,105630.0,0.18810186]
[1749864879167,1.1375689,105640.0,105630.0,0.2012208]
[1749864879367,0.8075689,105640.0,105630.0,0.2012208]
[1749864879568,0.8075689,105640.0,105630.0,0.18810186]
[1749864879768,1.1675689,105640.0,105630.0,0.20122077]
[1749864880075,1.1675689,105640.0,105630.0,0.20120434]
[1749864880275,1.1675689,105640.0,105630.0,0.20287739]
[1749864880469,1.1675689,105640.0,105630.0,0.20120436]
[1749864880669,1.1675689,105640.0,105630.0,0.21598002]
[1749864880867,1.1675689,105640.0,105630.0,0.20123544]
[1749864881074,1.1675689,105640.0,105630.0,0.02805117]
[1749864881268,1.1675689,105640.0,105630.0,0.21602756]
[1749864881473,1.1675689,105640.0,105630.0,0.2160276]
[1749864881666,1.1675689,105640.0,105630.0,0.20287764]
[1749864881871,1.1675689,105640.0,105630.0,0.21603684]
[1749864882073,1.1675689,105640.0,105630.0,0.20287764]
[1749864882269,1.1675689,105640.0,105630.0,0.21603681]
[1749864882473,1.1675689,105640.0,105630.0,0.21604166]
[1749864882865,1.1675689,105640.0,105630.0,0.2160431]
[1749864883176,1.1675689,105640.0,105630.0,0.20287766]
[1749864883372,1.1675689,105640.0,105630.0,0.21604313]
[1749864883579,1.1675689,105640.0,105630.0,0.21611515]
[1749864883782,1.1675689,105640.0,105630.0,0.21611743]
[1749864884076,1.4175689,105640.0,105630.0,0.02819412]
[1749864884277,1.1675689,105640.0,105630.0,0.02819412]
[1749864884484,1.1675689,105640.0,105630.0,0.01491783]
[1749864884676,1.1675689,105640.0,105630.0,0.02821561]
[1749864884875,1.1275689,105640.0,105630.0,0.02821561]
[1749864885077,1.1275689,105640.0,105630.0,0.02821547]
[1749864885278,1.1275689,105640.0,105630.0,0.01341822]
[1749864885479,1.1275689,105640.0,105630.0,0.01493912]
[1749864885774,1.0396948,105640.0,105630.0,0.02821609]
[1749864886075,1.0396948,105640.0,105630.0,0.02821613]
[1749864886282,1.34496446,105640.0,105630.0,0.00014186]
[1749864886581,1.34496446,105640.0,105630.0,0.02822086]
[1749864886778,1.34496446,105640.0,105630.0,0.02822139]
[1749864887184,1.34496446,105640.0,105630.0,0.02822138]
[1749864887384,1.34496446,105640.0,105630.0,0.01342408]
[1749864887580,1.34496446,105640.0,105630.0,0.02822143]
[1749864887880,1.34496446,105640.0,105630.0,0.02826893]
[1749864888079,1.34496446,105640.0,105630.0,0.01347227]
[1749864888278,1.34496446,105640.0,105630.0,0.02829268]
[1749864888482,1.34496446,105640.0,105630.0,0.01493925]
[1749864888682,1.34496446,105640.0,105630.0,0.02829378]
[1749864888984,1.34496446,105640.0,105630.0,0.01493933]
[1749864889182,1.34496446,105640.0,105630.0,0.02829861]
[1749864889483,1.34496446,105640.0,105630.0,0.0282987]
[1749864889681,1.34496446,105640.0,105630.0,0.01493933]
[1749864889886,1.34496446,105640.0,105630.0,0.02829875]
[1749864890188,2.13016446,105640.0,105630.0,0.01350127]
[1749864890386,2.13016446,105640.0,105630.0,0.02829874]
[1749864890683,2.13016446,105640.0,105630.0,0.01355055]
[1749864890879,2.13016446,105640.0,105630.0,0.00014186]
[1749864891280,2.13016446,105640.0,105630.0,0.01493977]
[1749864891475,0.1892664,105620.0,105610.0,1.14928]
[1749864891685,0.63774607,105620.0,105610.0,1.47133862]
[1749864891876,0.66944607,105620.0,105610.0,1.48614484]
[1749864892074,0.66944607,105620.0,105610.0,1.48614492]
[1749864892279,0.66944607,105620.0,105610.0,1.47134676]
[1749864892480,1.03944607,105620.0,105610.0,0.02823708]
[1749864892686,1.55671606,105620.0,105610.0,0.01479943]
[1749864892987,0.1892844,105610.0,105600.0,0.51914186]
[1749864893286,0.73216622,105610.0,105600.0,0.54758686]
[1749864893481,0.73216622,105610.0,105600.0,0.54758691]
[1749864894187,0.73416622,105610.0,105600.0,0.52798691]
[1749864894491,0.6474844,105610.0,105600.0,0.55107075]
[1749864894682,0.6474844,105610.0,105600.0,0.55108712]
[1749864894984,0.6474844,105610.0,105600.0,0.53734172]
[1749864895183,0.6474844,105610.0,105600.0,0.55108712]
[1749864895487,0.76475406,105610.0,105600.0,0.53628726]
[1749864895686,0.76475406,105610.0,105600.0,0.55111951]
[1749864895883,0.7351308,105610.0,105600.0,0.53734281]
[1749864896186,0.7331308,105610.0,105600.0,0.53812074]
[1749864896383,0.7361308,105610.0,105600.0,0.53812073]
[1749864896579,0.7391308,105610.0,105600.0,0.18814186]
[1749864896886,1.0691308,105610.0,105600.0,0.21673254]
[1749864897084,0.7391308,105610.0,105600.0,0.00014186]
[1749864897383,1.0991308,105610.0,105600.0,0.02874262]
[1749864897589,1.0991308,105610.0,105600.0,0.01394173]
[1749864897784,1.0991308,105610.0,105600.0,0.01394142]
[1749864897984,1.0991308,105610.0,105600.0,0.01394146]
[1749864898185,1.1938268,105610.0,105600.0,0.02882421]
[1749864898378,1.1938268,105610.0,105600.0,0.01494369]
[1749864898586,1.1938268,105610.0,105600.0,0.00014186]
[1749864898889,1.1938268,105610.0,105600.0,0.0289687]
[1749864899184,2.1668668,105610.0,105600.0,0.00014186]
[1749864899486,2.0792204,105610.0,105600.0,0.01419279]
[1749864899688,2.16677529,105610.0,105600.0,0.0149441]
[1749864899890,2.16677529,105610.0,105600.0,0.01419441]
[1749864900087,1.19373529,105610.0,105600.0,0.02900287]
[1749864900284,2.16645529,105610.0,105600.0,0.01419594]
[1749864900490,2.16645529,105610.0,105600.0,0.02899819]
[1749864900689,2.16645529,105610.0,105600.0,0.02899658]
[1749864900882,2.16645529,105610.0,105600.0,0.02899659]
[1749864901087,2.16645529,105610.0,105600.0,0.01419434]
[1749864901389,2.16645529,105610.0,105600.0,0.02901425]
[1749864901587,2.16645529,105610.0,105600.0,0.01494425]
[1749864901787,2.16645529,105610.0,105600.0,0.01421243]
[1749864901989,2.16645529,105610.0,105600.0,0.02901483]
[1749864902191,2.16645529,105610.0,105600.0,0.02901486]
[1749864902393,2.49770889,105610.0,105580.0,0.21924]
[1749864902584,0.9109203,105590.0,105580.0,0.26938514]
[1749864902789,2.1940803,105590.0,105580.0,0.26938514]
[1749864902984,2.40854719,105590.0,105580.0,0.26938514]
[1749864903184,2.31383519,105590.0,105580.0,0.26938514]
[1749864904386,2.31383519,105590.0,105570.0,0.03114186]
[1749864904387,2.21922689,105590.0,105570.0,0.03114186]
[1749864904691,0.1893561,105570.0,105560.0,0.23026387]
[1749864904896,0.5501561,105570.0,105560.0,0.250774]
[1749864905789,0.5501561,105570.0,105560.0,0.29252362]
[1749864906087,0.5501561,105570.0,105560.0,0.77395146]
[1749864906088,0.07749486,105570.0,105560.0,0.77395146]
[1749864906288,0.8412021,105590.0,105580.0,0.1893381]
[1749864906490,0.6642821,105590.0,105580.0,0.1893381]
[1749864906688,0.6642821,105590.0,105580.0,0.37316594]
[1749864907687,0.6642821,105590.0,105580.0,0.40396594]
[1749864909294,0.6642821,105590.0,105580.0,0.21462784]
[1749864909993,0.74086,105590.0,105580.0,0.21462784]
[1749864913599,0.74086,105590.0,105580.0,0.25639689]
[1749864913800,0.74086,105590.0,105580.0,0.21462784]
[1749864914499,0.74086,105590.0,105580.0,0.22943116]
[1749864914696,0.74086,105590.0,105580.0,0.28482353]
[1749864915103,0.74086,105590.0,105580.0,0.24305106]
[1749864915601,0.74086,105590.0,105580.0,0.22826042]
[1749864915796,0.74086,105590.0,105580.0,0.24306384]
[1749864916802,0.74086,105590.0,105580.0,0.22943126]
[1749864917007,0.74086,105590.0,105580.0,0.24306389]
[1749864917205,0.74086,105590.0,105580.0,0.22828712]
[1749864917406,0.74086,105590.0,105580.0,0.24309054]
[1749864917595,0.74086,105590.0,105580.0,0.22943126]
[1749864917801,0.77276,105590.0,105580.0,0.24309054]
[1749864917995,0.77276,105590.0,105580.0,0.24308296]
[1749864918205,0.77276,105590.0,105580.0,0.24308297]
[1749864918802,0.77276,105590.0,105580.0,0.22827955]
[1749864919005,0.77276,105590.0,105580.0,0.24308294]
[1749864919706,0.77276,105590.0,105580.0,0.22827952]
[1749864919897,0.77276,105590.0,105580.0,0.22943126]
[1749864920098,0.77276,105590.0,105580.0,0.27125766]
[1749864920303,0.77276,105590.0,105580.0,0.28490855]
[1749864920506,0.77276,105590.0,105580.0,0.29527868]
[1749864920706,0.77276,105590.0,105580.0,0.45821766]
[1749864921006,0.77276,105590.0,105580.0,0.482239]
[1749864921205,0.77276,105590.0,105580.0,0.45369477]
[1749864921599,0.80486,105590.0,105580.0,0.46743541]
[1749864921902,0.80486,105590.0,105580.0,0.48224136]
[1749864922211,0.80486,105590.0,105580.0,0.46743123]
[1749864922405,0.80486,105590.0,105580.0,0.44341424]
[1749864922603,0.80486,105590.0,105580.0,0.45715485]
[1749864922798,0.80486,105590.0,105580.0,0.46743125]
[1749864923008,0.80486,105590.0,105580.0,0.46849407]
[1749864923308,0.80486,105590.0,105580.0,0.48223468]
[1749864923507,0.80486,105590.0,105580.0,0.44341424]
[1749864923715,0.0865779,105590.0,105580.0,0.85242864]
[1749864923900,0.0765779,105590.0,105580.0,1.29123015]
[1749864924101,0.1893201,105590.0,105580.0,1.28670396]
[1749864924306,0.1893201,105590.0,105580.0,1.17060122]
[1749864924512,0.1893201,105590.0,105580.0,1.30459599]
[1749864924707,0.1893201,105590.0,105580.0,0.67442733]
[1749864925008,0.1893201,105590.0,105580.0,1.02045808]
[1749864925305,0.1893201,105590.0,105580.0,0.66923621]
[1749864925604,0.1893201,105590.0,105580.0,0.655822]
[1749864925909,0.5829201,105590.0,105580.0,0.64055409]
[1749864926110,0.6138201,105590.0,105580.0,0.19078034]
[1749864926311,0.62316411,105590.0,105580.0,0.3778897]
[1749864926510,0.710719,105590.0,105580.0,0.33599168]
[1749864926711,0.710719,105590.0,105580.0,0.37790472]
[1749864927003,0.710719,105590.0,105580.0,0.19104817]
[1749864927211,0.710719,105590.0,105580.0,0.32129391]
[1749864927412,0.710719,105590.0,105580.0,0.33609729]
[1749864927607,0.710719,105590.0,105580.0,0.25734055]
[1749864927812,0.710719,105590.0,105580.0,0.21544109]
[1749864928104,0.710719,105590.0,105580.0,0.2006377]
[1749864928105,0.78533303,105590.0,105580.0,0.2006377]
[1749864928305,0.78533303,105590.0,105580.0,0.21546787]
[1749864928711,0.78533303,105590.0,105580.0,0.20176363]
[1749864928914,0.78533303,105590.0,105580.0,0.21546788]
[1749864929307,0.78533303,105590.0,105580.0,0.25738537]
[1749864929714,0.78533303,105590.0,105580.0,0.24258174]
[1749864929914,1.11533303,105590.0,105580.0,0.24258173]
[1749864930114,0.78533303,105590.0,105580.0,0.25738537]
[1749864930516,0.78533303,105590.0,105580.0,0.24256463]
[1749864930704,0.78533303,105590.0,105580.0,0.25736827]
[1749864930910,0.78533303,105590.0,105580.0,0.24366398]
[1749864931121,0.78533303,105590.0,105580.0,0.26764805]
[1749864931410,0.78533303,105590.0,105580.0,0.25736826]
[1749864931608,0.78533303,105590.0,105580.0,0.267648]
[1749864931804,0.78533303,105590.0,105580.0,0.25736824]
[1749864932003,0.78533303,105590.0,105580.0,0.25284978]
[1749864932205,0.78533303,105590.0,105580.0,0.25293412]
[1749864932410,1.16533303,105590.0,105580.0,0.26773789]
[1749864932710,0.78533303,105590.0,105580.0,0.25745908]
[1749864932916,0.78533303,105590.0,105580.0,0.2529351]
[1749864933119,1.09533303,105590.0,105580.0,0.08077894]
[1749864933414,0.78533303,105590.0,105580.0,0.08079046]
[1749864933613,0.78533303,105590.0,105580.0,0.06698891]
[1749864933915,0.78533303,105590.0,105580.0,0.08076965]
[1749864934116,0.78533303,105590.0,105580.0,0.06596342]
[1749864934418,0.78533303,105590.0,105580.0,0.07048232]
[1749864934715,0.78533303,105590.0,105580.0,0.08076706]
[1749864934911,0.78533303,105590.0,105580.0,0.05567867]
[1749864935117,0.78533303,105590.0,105580.0,0.07048232]
[1749864935310,0.78533303,105590.0,105580.0,0.08076691]
[1749864935509,0.78533303,105590.0,105580.0,0.05218509]
[1749864935705,0.78533303,105590.0,105580.0,0.01375849]
[1749864935706,0.69777814,105590.0,105580.0,0.01375849]
[1749864935912,0.69777814,105590.0,105580.0,0.03884643]
[1749864936311,0.1893382,105580.0,105570.0,1.6036126]
[1749864936516,0.66856687,105580.0,105570.0,1.80501664]
[1749864937411,0.73246687,105580.0,105570.0,1.56903346]
[1749864937615,0.73346687,105580.0,105570.0,1.52500404]
[1749864937815,0.73346687,105580.0,105570.0,1.51023714]
[1749864938015,0.73346687,105580.0,105570.0,1.52504291]
[1749864938218,0.73346687,105580.0,105570.0,1.52504324]
[1749864938519,0.76290786,105580.0,105570.0,1.46834307]
[1749864938817,0.76290786,105580.0,105570.0,1.4728569]
[1749864939014,0.76290786,105580.0,105570.0,1.48314884]
[1749864939209,0.76290786,105580.0,105570.0,1.4831482]
[1749864939415,0.76290786,105580.0,105570.0,1.44422784]
[1749864939615,0.6456382,105580.0,105570.0,1.48314884]
[1749864939818,0.6456382,105580.0,105570.0,1.45451858]
[1749864940011,0.6456382,105580.0,105570.0,1.4831337]
[1749864940314,0.6456382,105580.0,105570.0,1.45804549]
[1749864940518,0.6456382,105580.0,105570.0,1.48313371]
[1749864940819,0.6456382,105580.0,105570.0,1.4728488]
[1749864941118,0.6456382,105580.0,105570.0,1.4831337]
[1749864941313,0.6456382,105580.0,105570.0,1.48313371]
[1749864941514,0.6456382,105580.0,105570.0,1.45778993]
[1749864941912,0.6456382,105580.0,105570.0,1.47259356]
[1749864942117,0.6456382,105580.0,105570.0,1.45778962]
[1749864942317,0.6456382,105580.0,105570.0,1.51451605]
[1749864942512,0.6456382,105580.0,105570.0,1.51454412]
[1749864942713,0.6456382,105580.0,105570.0,1.51003354]
[1749864942920,0.6456382,105580.0,105570.0,1.51454378]
[1749864943217,0.6456382,105580.0,105570.0,1.51124764]
[1749864943413,0.6456382,105580.0,105570.0,1.52483715]
[1749864943820,0.6456382,105580.0,105570.0,1.52483702]
[1749864944019,0.6456382,105580.0,105570.0,1.51454354]
[1749864944220,0.6456382,105580.0,105570.0,1.50095428]
[1749864944417,0.6456382,105580.0,105570.0,1.49973959]
[1749864944621,0.6456382,105580.0,105570.0,1.52483687]
[1749864945117,0.6456382,105580.0,105570.0,1.68909565]
[1749864945317,0.6456382,105580.0,105570.0,1.55723684]
[1749864945518,0.6456382,105580.0,105570.0,1.54243294]
[1749864945718,0.73345657,105580.0,105570.0,1.54364764]
[1749864945925,0.73345657,105580.0,105570.0,1.54694351]
[1749864946120,0.73345657,105580.0,105570.0,1.53213958]
[1749864946421,0.73345657,105580.0,105570.0,1.54364765]
[1749864946724,0.73345657,105580.0,105570.0,1.25885446]
[1749864947031,0.73345657,105580.0,105570.0,1.23495429]
[1749864947223,0.73345657,105580.0,105570.0,1.25883574]
[1749864947722,0.73345657,105580.0,105570.0,1.25883332]
[1749864948224,0.73345657,105580.0,105570.0,1.24854477]
[1749864948416,0.73345657,105580.0,105570.0,1.25883332]
[1749864948616,0.73345657,105580.0,105570.0,1.44815578]
[1749864948817,0.73345657,105580.0,105570.0,1.25879797]
[1749864949013,0.73345657,105580.0,105570.0,1.25879816]
[1749864949218,0.73345657,105580.0,105570.0,1.25882167]
[1749864949414,0.73345657,105580.0,105570.0,1.25882226]
[1749864949825,0.73345657,105580.0,105570.0,1.23043889]
[1749864950123,0.73345657,105580.0,105570.0,1.25882193]
[1749864950325,0.73345657,105580.0,105570.0,1.44817793]
[1749864950520,0.73345657,105580.0,105570.0,1.43337399]
[1749864950720,0.73345657,105580.0,105570.0,1.44817729]
[1749864950915,0.73345657,105580.0,105570.0,1.43459881]
[1749864951120,0.73345657,105580.0,105570.0,1.23043889]
[1749864951315,0.73345657,105580.0,105570.0,1.23372869]
[1749864951520,0.73345657,105580.0,105570.0,1.2588218]
[1749864951720,0.73345657,105580.0,105570.0,1.24853326]
[1749864951926,0.73345657,105580.0,105570.0,1.23043698]
[1749864952220,0.73345657,105580.0,105570.0,1.23372482]
[1749864952425,0.73345657,105580.0,105570.0,1.25881538]
[1749864952621,0.73345657,105580.0,105570.0,1.23043698]
[1749864952831,0.73345657,105580.0,105570.0,1.74657143]
[1749864953127,0.73345657,105580.0,105570.0,1.54241591]
[1749864953421,0.73345657,105580.0,105570.0,1.73628928]
[1749864953623,0.73345657,105580.0,105570.0,1.74657871]
[1749864953823,0.73345657,105580.0,105570.0,1.7465787]
[1749864954024,0.73345657,105580.0,105570.0,1.74328657]
[1749864954224,0.73345657,105580.0,105570.0,1.74657939]
[1749864954415,0.73345657,105580.0,105570.0,1.74657933]
[1749864954624,0.73345657,105580.0,105570.0,1.74328658]
[1749864954821,0.73345657,105580.0,105570.0,1.7568675]
[1749864955127,0.73345657,105580.0,105570.0,1.53912661]
[1749864955323,0.73345657,105580.0,105570.0,1.54241941]
[1749864955524,0.73345657,105580.0,105570.0,1.55722644]
[1749864955719,0.73345657,105580.0,105570.0,1.52883848]
[1749864955919,0.73345657,105580.0,105570.0,1.55271106]
[1749864956119,0.73345657,105580.0,105570.0,1.54364248]
[1749864956320,0.73345657,105580.0,105570.0,1.55393062]
[1749864956619,0.73345657,105580.0,105570.0,2.30622651]
[1749864956820,0.73345657,105580.0,105570.0,1.20397463]
[1749864957021,0.73345657,105580.0,105570.0,2.18560571]
[1749864957221,0.73345657,105580.0,105570.0,2.17201471]
[1749864957527,0.73345657,105580.0,105570.0,2.19590113]
[1749864958120,0.73345657,105580.0,105570.0,2.19591155]
[1749864958422,0.73345657,105580.0,105570.0,2.19591928]
[1749864958726,0.73345657,105580.0,105570.0,2.19591935]
[1749864959027,0.73345657,105580.0,105570.0,0.59598318]
[1749864959228,0.73345657,105580.0,105570.0,0.5959734]
[1749864959424,0.73345657,105580.0,105570.0,0.59595552]
[1749864959828,0.73345657,105580.0,105570.0,0.59595548]
[1749864960128,0.73345657,105580.0,105570.0,0.59595568]
[1749864960423,0.73345657,105580.0,105570.0,0.5540329]
[1749864960625,0.73345657,105580.0,105570.0,0.59600624]
[1749864960833,0.73345657,105580.0,105570.0,0.59600623]
[1749864961129,0.73345657,105580.0,105570.0,0.58240276]
[1749864961323,0.73345657,105580.0,105570.0,0.59600621]
[1749864961518,0.73345657,105580.0,105570.0,0.57210733]
[1749864961726,0.73345657,105580.0,105570.0,0.57091019]
[1749864961917,0.73345657,105580.0,105570.0,0.59603951]
[1749864962122,0.73345657,105580.0,105570.0,0.59603952]
[1749864962322,0.73345657,105580.0,105570.0,0.59604026]
[1749864962720,0.73345657,105580.0,105570.0,0.58123614]
[1749864962921,0.73346619,105580.0,105570.0,0.40940025]
[1749864963125,0.73346619,105580.0,105570.0,0.56764658]
[1749864963328,0.73346619,105580.0,105570.0,0.59610528]
[1749864963522,0.73346619,105580.0,105570.0,0.55734325]
[1749864963723,0.73346619,105580.0,105570.0,0.596104]
[1749864964126,0.73346619,105580.0,105570.0,0.58245089]
[1749864964530,0.9256382,105580.0,105570.0,0.09737275]
[1749864964825,2.15232376,105580.0,105570.0,0.01385852]
[1749864965031,2.0350541,105580.0,105570.0,0.01386695]
[1749864965229,2.18180159,105580.0,105570.0,0.01386695]
[1749864965424,2.0350541,105580.0,105570.0,0.01386695]
[1749864965628,2.0350541,105580.0,105550.0,1.30368]
[1749864965629,0.1893739,105560.0,105550.0,1.30368]
[1749864965826,0.99875168,105560.0,105550.0,1.33251619]
[1749864966027,1.09285168,105560.0,105550.0,1.14583619]
[1749864966227,1.09285168,105560.0,105550.0,1.33251619]
[1749864966428,1.09285168,105560.0,105550.0,1.31729022]
[1749864966627,1.09285168,105560.0,105550.0,1.33209748]
[1749864966827,1.09485168,105560.0,105550.0,1.34514036]
[1749864967131,1.09685168,105560.0,105550.0,1.36622333]
[1749864967424,1.09685168,105560.0,105550.0,1.35141605]
[1749864967628,1.09685168,105560.0,105550.0,1.35141602]
[1749864967824,1.09685168,105560.0,105550.0,1.3662233]
[1749864968026,0.09177778,105560.0,105550.0,1.72490712]
[1749864968230,0.1933741,105560.0,105550.0,2.6837156]
[1749864968423,0.004,105560.0,105550.0,2.68371403]
[1749864968623,0.004,105560.0,105550.0,2.68333131]
[1749864968829,0.004,105560.0,105550.0,2.63899344]
[1749864969227,0.004,105560.0,105550.0,3.0459612]
[1749864969430,0.18949796,105570.0,105560.0,0.1893741]
[1749864969632,0.2840247,105580.0,105570.0,0.1893561]
[1749864969831,0.2840247,105580.0,105570.0,1.60660389]
[1749864970026,0.2840247,105580.0,105570.0,1.59327884]
[1749864970232,0.2840247,105580.0,105570.0,1.60644917]
[1749864970435,0.2366877,105580.0,105570.0,2.42512917]
[1749864970628,0.2366877,105580.0,105570.0,2.45629542]
[1749864971029,0.2366877,105580.0,105570.0,2.46329542]
[1749864971329,0.2366877,105580.0,105570.0,2.46329465]
[1749864971530,0.2366877,105580.0,105570.0,2.44849268]
[1749864971928,0.2366877,105580.0,105570.0,2.46329463]
[1749864972330,0.2366877,105580.0,105570.0,2.44849268]
[1749864972531,0.2376877,105580.0,105570.0,2.47029464]
[1749864972934,0.2376877,105580.0,105570.0,2.47029431]
[1749864973132,0.001,105580.0,105570.0,2.56501426]